[Event "Titled Tuesday Blitz June 8 2021"]
[White "Vignesh, N R"]
[Black "Belenkaya, Dina"]
[WhiteFideId "25012215"]
[BlackFideId "24142654"]
[WhiteElo "2401"]
[BlackElo "2247"]
[Result "1-0"]
[Round "01"]
[TimeControl "180+1"]
[Date "2021.06.08"]
[WhiteClock "0:00:18"]
[BlackClock "0:00:02"]

1. Nf3 {[%clk 0:02:59]}  Nf6 {[%clk 0:02:56]} 2. b3 {[%clk 0:02:59]}  d5 {[%clk 0:02:56]} 3. Bb2 {[%clk 0:03:00]}  c6 {[%clk 0:02:52]} 4. e3 {[%clk 0:03:01]}  Bf5 {[%clk 0:02:49]} 5. c4 {[%clk 0:03:01]}  e6 {[%clk 0:02:49]} 6. Be2 {[%clk 0:03:01]}  h6 {[%clk 0:02:48]} 7. O-O {[%clk 0:03:02]}  Bd6 {[%clk 0:02:45]} 8. d3 {[%clk 0:03:01]}  Bh7 {[%clk 0:02:42]} 9. Nbd2 {[%clk 0:03:01]}  Nbd7 {[%clk 0:02:42]} 10. a3 {[%clk 0:03:01]}  e5 {[%clk 0:02:41]} 11. b4 {[%clk 0:02:49]}  O-O {[%clk 0:02:36]} 12. e4 {[%clk 0:02:35]}  dxe4 {[%clk 0:02:27]} 13. dxe4 {[%clk 0:02:34]}  Qe7 {[%clk 0:02:26]} 14. c5 {[%clk 0:02:33]}  Bc7 {[%clk 0:02:26]} 15. Bd3 {[%clk 0:02:30]}  Rfd8 {[%clk 0:02:25]} 16. Qe2 {[%clk 0:02:29]}  Nh5 {[%clk 0:02:22]} 17. g3 {[%clk 0:02:29]}  Nhf6 {[%clk 0:02:21]} 18. Nc4 {[%clk 0:02:28]}  b5 {[%clk 0:02:17]} 19. cxb6 {[%clk 0:02:25]}  axb6 {[%clk 0:02:18]} 20. Rac1 {[%clk 0:02:20]}  b5 {[%clk 0:02:17]} 21. Ncd2 {[%clk 0:02:15]}  Qe6 {[%clk 0:02:12]} 22. Bc2 {[%clk 0:02:06]}  Nb6 {[%clk 0:02:09]} 23. Bb3 {[%clk 0:02:03]}  Qe8 {[%clk 0:02:09]} 24. Kg2 {[%clk 0:01:59]}  Kh8 {[%clk 0:02:02]} 25. Rc2 {[%clk 0:01:55]}  Na4 {[%clk 0:01:52]} 26. Ba1 {[%clk 0:01:45]}  Nb6 {[%clk 0:01:28]} 27. Rfc1 {[%clk 0:01:44]}  Rxa3 {[%clk 0:01:28]} 28. Rxc6 {[%clk 0:01:43]}  Rxa1 {[%clk 0:01:24]} 29. Rxc7 {[%clk 0:01:39]}  Rxc1 {[%clk 0:01:23]} 30. Rxc1 {[%clk 0:01:40]}  Rc8 {[%clk 0:01:05]} 31. Rxc8 {[%clk 0:01:34]}  Nxc8 {[%clk 0:01:06]} 32. Qd3 {[%clk 0:01:15]}  Qe7 {[%clk 0:00:44]} 33. Qxb5 {[%clk 0:01:04]}  Nxe4 {[%clk 0:00:43]} 34. Qb8 {[%clk 0:00:41]}  Nd6 {[%clk 0:00:40]} 35. Nc4 {[%clk 0:00:36]}  Bg8 {[%clk 0:00:16]} 36. Ncxe5 {[%clk 0:00:31]}  Kh7 {[%clk 0:00:15]} 37. Qa8 {[%clk 0:00:25]}  g6 {[%clk 0:00:15]} 38. Qd5 {[%clk 0:00:23]}  Kg7 {[%clk 0:00:11]} 39. Qd4 {[%clk 0:00:20]}  f6 {[%clk 0:00:10]} 40. Nc6 {[%clk 0:00:19]}  Qd8 {[%clk 0:00:08]} 41. Bxg8 {[%clk 0:00:19]}  Kxg8 {[%clk 0:00:09]} 42. b5 {[%clk 0:00:18]}  Qf8 {[%clk 0:00:07]} 43. b6 {[%clk 0:00:16]}  Nb7 {[%clk 0:00:06]} 44. Qd7 {[%clk 0:00:14]}  Ncd6 {[%clk 0:00:05]} 45. Ne7+ {[%clk 0:00:14]}  Kf7 {[%clk 0:00:04]} 46. Nf5+ {[%clk 0:00:13]}  Kg8 {[%clk 0:00:03]} 47. Nxd6 {[%clk 0:00:12]}  Nxd6 {[%clk 0:00:04]} 48. Qe6+ {[%clk 0:00:11]}  Kg7 {[%clk 0:00:04]} 49. Nd4 {[%clk 0:00:11]}  Qb8 {[%clk 0:00:03]} 50. Qd7+ {[%clk 0:00:11]}  Kh8 {[%clk 0:00:03]} 51. Ne6 {[%clk 0:00:11]}  Qb7+ {[%clk 0:00:03]} 52. Qxb7 {[%clk 0:00:11]}  Nxb7 {[%clk 0:00:04]} 53. Kf3 {[%clk 0:00:12]}  Kg8 {[%clk 0:00:04]} 54. Ke4 {[%clk 0:00:12]}  Kf7 {[%clk 0:00:05]} 55. Kd5 {[%clk 0:00:13]}  Ke7 {[%clk 0:00:04]} 56. Nc5 {[%clk 0:00:13]}  Nd8 {[%clk 0:00:01]} 57. b7 {[%clk 0:00:13]}  Nxb7 {[%clk 0:00:01]} 58. Nxb7 {[%clk 0:00:14]}  g5 {[%clk 0:00:02]} 59. Nc5 {[%clk 0:00:14]}  h5 {[%clk 0:00:02]} 60. Ne6 {[%clk 0:00:14]}  h4 {[%clk 0:00:02]} 61. g4 {[%clk 0:00:15]}  h3 {[%clk 0:00:02]} 62. Nd4 {[%clk 0:00:14]}  Kf7 {[%clk 0:00:02]} 63. Nf5 {[%clk 0:00:15]}  Kg6 {[%clk 0:00:02]} 64. Ke6 {[%clk 0:00:15]}  Kh7 {[%clk 0:00:02]} 65. Kxf6 {[%clk 0:00:16]}  Kh8 {[%clk 0:00:02]} 66. Kxg5 {[%clk 0:00:17]}  Kh7 {[%clk 0:00:02]} 67. Kh4 {[%clk 0:00:18]} 1-0


[Site "https://www.chess.com"]

[Event "Titled Tuesday Blitz June 8 2021"]
[White "Volkov, Maksim"]
[Black "Gumularz, Szymon"]
[WhiteFideId "54123070"]
[BlackFideId "1188062"]
[WhiteElo "2113"]
[BlackElo "2384"]
[Result "1-0"]
[Round "01"]
[TimeControl "180+1"]
[Date "2021.06.08"]
[WhiteClock "0:00:13"]
[BlackClock "0:00:06"]

1. d4 {[%clk 0:02:59]}  Nf6 {[%clk 0:02:59]} 2. c4 {[%clk 0:02:59]}  e6 {[%clk 0:02:59]} 3. g3 {[%clk 0:02:59]}  c5 {[%clk 0:02:58]} 4. d5 {[%clk 0:02:58]}  exd5 {[%clk 0:02:59]} 5. cxd5 {[%clk 0:02:59]}  d6 {[%clk 0:03:00]} 6. Nc3 {[%clk 0:02:58]}  g6 {[%clk 0:03:01]} 7. Bg2 {[%clk 0:02:58]}  Bg7 {[%clk 0:03:02]} 8. e4 {[%clk 0:02:58]}  O-O {[%clk 0:03:01]} 9. Nf3 {[%clk 0:02:54]}  Bg4 {[%clk 0:02:52]} 10. O-O {[%clk 0:02:53]}  Nbd7 {[%clk 0:02:50]} 11. h3 {[%clk 0:02:51]}  Bxf3 {[%clk 0:02:49]} 12. Qxf3 {[%clk 0:02:52]}  a6 {[%clk 0:02:49]} 13. a4 {[%clk 0:02:51]}  Re8 {[%clk 0:02:48]} 14. Qe2 {[%clk 0:02:42]}  Rc8 {[%clk 0:02:47]} 15. Bf4 {[%clk 0:02:39]}  Ne5 {[%clk 0:02:46]} 16. Be3 {[%clk 0:02:39]}  c4 {[%clk 0:02:40]} 17. f4 {[%clk 0:02:37]}  Nd3 {[%clk 0:02:40]} 18. Bd4 {[%clk 0:02:35]}  Nd7 {[%clk 0:02:38]} 19. Bxg7 {[%clk 0:02:34]}  Kxg7 {[%clk 0:02:39]} 20. b3 {[%clk 0:02:18]}  Qb6+ {[%clk 0:02:33]} 21. Kh2 {[%clk 0:02:15]}  Qxb3 {[%clk 0:02:31]} 22. Nd1 {[%clk 0:02:05]}  Nf6 {[%clk 0:02:26]} 23. Qd2 {[%clk 0:01:47]}  Nxe4 {[%clk 0:02:20]} 24. Bxe4 {[%clk 0:01:40]}  Rxe4 {[%clk 0:02:21]} 25. Nc3 {[%clk 0:01:40]}  Nc5 {[%clk 0:00:54]} 26. Rfb1 {[%clk 0:01:27]}  Ree8 {[%clk 0:00:53]} 27. Ra2 {[%clk 0:01:07]}  Ne4 {[%clk 0:00:52]} 28. Qd4+ {[%clk 0:01:06]}  Kh6 {[%clk 0:00:46]} 29. Rxb3 {[%clk 0:00:25]}  cxb3 {[%clk 0:00:47]} 30. Nxe4 {[%clk 0:00:25]}  bxa2 {[%clk 0:00:44]} 31. g4 {[%clk 0:00:25]}  Rc2+ {[%clk 0:00:31]} 32. Kg3 {[%clk 0:00:22]}  Rxe4 {[%clk 0:00:31]} 33. g5+ {[%clk 0:00:18]}  Kh5 {[%clk 0:00:31]} 34. Qxe4 {[%clk 0:00:18]}  Rc3+ {[%clk 0:00:29]} 35. Kg2 {[%clk 0:00:14]}  Rc2+ {[%clk 0:00:05]} 36. Qxc2 {[%clk 0:00:13]}  a1=Q {[%clk 0:00:05]} 37. Qe2+ {[%clk 0:00:13]}  Kh4 {[%clk 0:00:06]} 38. Qg4# {[%clk 0:00:13]} 1-0


[Site "https://www.chess.com"]

[Event "Titled Tuesday Blitz June 8 2021"]
[White "Wu, Rochelle"]
[Black "Ozen, Bahadir"]
[WhiteFideId "30908132"]
[BlackFideId "6337058"]
[WhiteElo "2395"]
[BlackElo "2503"]
[Result "0-1"]
[Round "01"]
[TimeControl "180+1"]
[Date "2021.06.08"]
[WhiteClock "0:00:10"]
[BlackClock "0:00:17"]

1. d4 {[%clk 0:02:29]}  d5 {[%clk 0:02:51]} 2. c4 {[%clk 0:02:27]}  c6 {[%clk 0:02:51]} 3. Nc3 {[%clk 0:02:26]}  Nf6 {[%clk 0:02:51]} 4. Nf3 {[%clk 0:02:25]}  e6 {[%clk 0:02:51]} 5. Bg5 {[%clk 0:02:19]}  dxc4 {[%clk 0:02:45]} 6. e4 {[%clk 0:02:14]}  b5 {[%clk 0:02:45]} 7. e5 {[%clk 0:01:59]}  h6 {[%clk 0:02:45]} 8. Bh4 {[%clk 0:01:58]}  g5 {[%clk 0:02:45]} 9. Nxg5 {[%clk 0:01:57]}  hxg5 {[%clk 0:02:46]} 10. Bxg5 {[%clk 0:01:58]}  Nbd7 {[%clk 0:02:46]} 11. g3 {[%clk 0:01:58]}  Bb7 {[%clk 0:02:45]} 12. Bg2 {[%clk 0:01:58]}  Qb6 {[%clk 0:02:31]} 13. exf6 {[%clk 0:01:56]}  O-O-O {[%clk 0:02:20]} 14. O-O {[%clk 0:01:56]}  a6 {[%clk 0:02:14]} 15. Rb1 {[%clk 0:01:45]}  c5 {[%clk 0:02:03]} 16. d5 {[%clk 0:01:45]}  Ne5 {[%clk 0:02:02]} 17. Qe2 {[%clk 0:01:31]}  Nd3 {[%clk 0:01:53]} 18. dxe6 {[%clk 0:01:27]}  Qxe6 {[%clk 0:01:52]} 19. Bxb7+ {[%clk 0:01:19]}  Kxb7 {[%clk 0:01:53]} 20. Qf3+ {[%clk 0:01:14]}  Qc6 {[%clk 0:01:52]} 21. Qf5 {[%clk 0:01:11]}  b4 {[%clk 0:01:36]} 22. Ne4 {[%clk 0:01:09]}  Rd5 {[%clk 0:01:35]} 23. Qg4 {[%clk 0:01:05]}  Rg8 {[%clk 0:01:02]} 24. h4 {[%clk 0:01:04]}  Rd4 {[%clk 0:01:03]} 25. f3 {[%clk 0:01:02]}  Ne5 {[%clk 0:01:03]} 26. Qf5 {[%clk 0:00:59]}  Nxf3+ {[%clk 0:00:56]} 27. Rxf3 {[%clk 0:00:58]}  Qxe4 {[%clk 0:00:51]} 28. Qxe4+ {[%clk 0:00:55]}  Rxe4 {[%clk 0:00:52]} 29. Rd1 {[%clk 0:00:55]}  Rd4 {[%clk 0:00:47]} 30. Re1 {[%clk 0:00:51]}  Bd6 {[%clk 0:00:47]} 31. Re2 {[%clk 0:00:46]}  a5 {[%clk 0:00:39]} 32. Kg2 {[%clk 0:00:44]}  Kc6 {[%clk 0:00:39]} 33. Kh3 {[%clk 0:00:39]}  Rd3 {[%clk 0:00:39]} 34. Ree3 {[%clk 0:00:37]}  Rxe3 {[%clk 0:00:36]} 35. Rxe3 {[%clk 0:00:38]}  a4 {[%clk 0:00:36]} 36. Kg4 {[%clk 0:00:36]}  Kd5 {[%clk 0:00:31]} 37. h5 {[%clk 0:00:35]}  c3 {[%clk 0:00:29]} 38. bxc3 {[%clk 0:00:34]}  b3 {[%clk 0:00:30]} 39. axb3 {[%clk 0:00:33]}  axb3 {[%clk 0:00:31]} 40. h6 {[%clk 0:00:31]}  b2 {[%clk 0:00:29]} 41. Re1 {[%clk 0:00:31]}  Kc4 {[%clk 0:00:30]} 42. Kh5 {[%clk 0:00:27]}  Bxg3 {[%clk 0:00:25]} 43. Rf1 {[%clk 0:00:20]}  Bd6 {[%clk 0:00:20]} 44. Rb1 {[%clk 0:00:15]}  Kxc3 {[%clk 0:00:19]} 45. Rg1 {[%clk 0:00:14]}  Kc2 {[%clk 0:00:18]} 46. Rg2+ {[%clk 0:00:13]}  Kb3 {[%clk 0:00:18]} 47. Rg1 {[%clk 0:00:13]}  Ka2 {[%clk 0:00:18]} 48. Rg2 {[%clk 0:00:12]}  Be5 {[%clk 0:00:18]} 49. h7 {[%clk 0:00:11]}  Rh8 {[%clk 0:00:19]} 50. Kh6 {[%clk 0:00:12]}  c4 {[%clk 0:00:16]} 51. Kg7 {[%clk 0:00:11]}  Rxh7+ {[%clk 0:00:16]} 52. Kxh7 {[%clk 0:00:11]}  c3 {[%clk 0:00:17]} 53. Kg7 {[%clk 0:00:11]}  Kb3 {[%clk 0:00:17]} 54. Rg1 {[%clk 0:00:10]}  c2 {[%clk 0:00:17]} 55. Kxf7 {[%clk 0:00:10]}  b1=Q {[%clk 0:00:17]} 0-1


[Site "https://www.chess.com"]

[Event "Titled Tuesday Blitz June 8 2021"]
[White "Zia, Tahsin Tajwar"]
[Black "Shipov, Sergei"]
[WhiteFideId "10211888"]
[BlackFideId "4113624"]
[WhiteElo "1800"]
[BlackElo "2774"]
[Result "0-1"]
[Round "01"]
[TimeControl "180+1"]
[Date "2021.06.08"]
[WhiteClock "0:00:02"]
[BlackClock "0:00:14"]

1. d4 {[%clk 0:02:56]}  Nf6 {[%clk 0:02:54]} 2. Bf4 {[%clk 0:02:52]}  g6 {[%clk 0:02:52]} 3. Nc3 {[%clk 0:02:45]}  Bg7 {[%clk 0:02:49]} 4. e4 {[%clk 0:02:36]}  d5 {[%clk 0:02:48]} 5. Nb5 {[%clk 0:02:34]}  Na6 {[%clk 0:02:44]} 6. e5 {[%clk 0:02:32]}  Ne4 {[%clk 0:02:04]} 7. f3 {[%clk 0:02:30]}  c6 {[%clk 0:02:03]} 8. Na3 {[%clk 0:02:03]}  Qa5+ {[%clk 0:02:02]} 9. c3 {[%clk 0:02:03]}  Nxc3 {[%clk 0:02:02]} 10. Qd2 {[%clk 0:02:03]}  Bf5 {[%clk 0:01:32]} 11. Qxc3 {[%clk 0:01:58]}  Nb4 {[%clk 0:01:30]} 12. Bd2 {[%clk 0:01:52]}  Nd3+ {[%clk 0:01:30]} 13. Bxd3 {[%clk 0:01:51]}  Qxc3 {[%clk 0:01:28]} 14. Bxc3 {[%clk 0:01:47]}  Bxd3 {[%clk 0:01:29]} 15. Nh3 {[%clk 0:01:44]}  f6 {[%clk 0:01:28]} 16. Nf2 {[%clk 0:01:43]}  Ba6 {[%clk 0:01:28]} 17. exf6 {[%clk 0:01:42]}  exf6 {[%clk 0:01:28]} 18. f4 {[%clk 0:01:34]}  Kf7 {[%clk 0:01:27]} 19. Kd2 {[%clk 0:01:34]}  h5 {[%clk 0:01:25]} 20. Rae1 {[%clk 0:01:28]}  Bh6 {[%clk 0:01:22]} 21. g3 {[%clk 0:01:25]}  Rhe8 {[%clk 0:01:20]} 22. Nd3 {[%clk 0:01:16]}  b6 {[%clk 0:01:18]} 23. b4 {[%clk 0:01:12]}  Re4 {[%clk 0:01:13]} 24. b5 {[%clk 0:01:11]}  Bxb5 {[%clk 0:01:06]} 25. Nxb5 {[%clk 0:01:09]}  cxb5 {[%clk 0:01:06]} 26. Nb4 {[%clk 0:01:08]}  Rd8 {[%clk 0:01:06]} 27. Nd3 {[%clk 0:00:49]}  Bf8 {[%clk 0:01:04]} 28. Nf2 {[%clk 0:00:48]}  Ree8 {[%clk 0:01:03]} 29. Rxe8 {[%clk 0:00:45]}  Rxe8 {[%clk 0:01:03]} 30. Re1 {[%clk 0:00:46]}  Rc8 {[%clk 0:01:01]} 31. Nd3 {[%clk 0:00:42]}  a5 {[%clk 0:01:00]} 32. Rc1 {[%clk 0:00:35]}  Rc4 {[%clk 0:00:55]} 33. Nb2 {[%clk 0:00:31]}  Rc8 {[%clk 0:00:54]} 34. Nd3 {[%clk 0:00:28]}  Rc4 {[%clk 0:00:54]} 35. Nb2 {[%clk 0:00:26]}  Rc8 {[%clk 0:00:54]} 36. Kd3 {[%clk 0:00:22]}  Ba3 {[%clk 0:00:53]} 37. Rc2 {[%clk 0:00:22]}  Ke6 {[%clk 0:00:43]} 38. Bd2 {[%clk 0:00:20]}  Rxc2 {[%clk 0:00:40]} 39. Kxc2 {[%clk 0:00:21]}  Kf5 {[%clk 0:00:41]} 40. Nd1 {[%clk 0:00:15]}  b4 {[%clk 0:00:36]} 41. Kd3 {[%clk 0:00:12]}  Kg4 {[%clk 0:00:33]} 42. Ne3+ {[%clk 0:00:11]}  Kh3 {[%clk 0:00:33]} 43. Nxd5 {[%clk 0:00:11]}  Kxh2 {[%clk 0:00:34]} 44. Nxf6 {[%clk 0:00:07]}  Kxg3 {[%clk 0:00:34]} 45. d5 {[%clk 0:00:06]}  a4 {[%clk 0:00:32]} 46. d6 {[%clk 0:00:03]}  b3 {[%clk 0:00:32]} 47. d7 {[%clk 0:00:02]}  bxa2 {[%clk 0:00:14]} 48. Bc3 {[%clk 0:00:02]}  Be7 {[%clk 0:00:14]} 49. Nd5 {[%clk 0:00:03]}  Bd8 {[%clk 0:00:14]} 50. Ba1 {[%clk 0:00:02]}  h4 {[%clk 0:00:15]} 51. Ne3 {[%clk 0:00:02]}  h3 {[%clk 0:00:15]} 52. Nf1+ {[%clk 0:00:02]}  Kf2 {[%clk 0:00:15]} 53. Ne3 {[%clk 0:00:03]}  Kf3 {[%clk 0:00:14]} 54. Nf1 {[%clk 0:00:03]}  b5 {[%clk 0:00:14]} 55. Kc3 {[%clk 0:00:03]}  Kxf4 {[%clk 0:00:13]} 56. Kb4 {[%clk 0:00:03]}  g5 {[%clk 0:00:13]} 57. Kxb5 {[%clk 0:00:03]}  g4 {[%clk 0:00:14]} 58. Kc6 {[%clk 0:00:04]}  g3 {[%clk 0:00:14]} 59. Kb7 {[%clk 0:00:04]}  g2 {[%clk 0:00:14]} 60. Kc8 {[%clk 0:00:02]}  Ba5 {[%clk 0:00:14]} 61. Bc3 {[%clk 0:00:02]}  gxf1=Q {[%clk 0:00:13]} 62. Bxa5 {[%clk 0:00:03]}  Qa6+ {[%clk 0:00:13]} 63. Kb8 {[%clk 0:00:02]}  Qxa5 {[%clk 0:00:14]} 0-1


[Site "https://www.chess.com"]

[Event "Titled Tuesday Blitz June 8 2021"]
[White "Concio, Michael Jr."]
[Black "Tang, Andrew"]
[WhiteFideId "5217873"]
[BlackFideId "2059630"]
[WhiteElo "1896"]
[BlackElo "2584"]
[Result "1-0"]
[Round "02"]
[TimeControl "180+1"]
[Date "2021.06.08"]
[WhiteClock "0:00:04"]
[BlackClock "0:00:03"]

1. e4 {[%clk 0:02:54]}  e5 {[%clk 0:02:59]} 2. Nf3 {[%clk 0:02:53]}  Nc6 {[%clk 0:02:59]} 3. Bc4 {[%clk 0:02:52]}  Bc5 {[%clk 0:02:57]} 4. d3 {[%clk 0:02:52]}  Nf6 {[%clk 0:02:58]} 5. O-O {[%clk 0:02:51]}  d6 {[%clk 0:02:57]} 6. h3 {[%clk 0:02:51]}  a6 {[%clk 0:02:56]} 7. Nc3 {[%clk 0:02:48]}  Be6 {[%clk 0:02:52]} 8. Bxe6 {[%clk 0:02:35]}  fxe6 {[%clk 0:02:53]} 9. Be3 {[%clk 0:02:36]}  Bb4 {[%clk 0:02:33]} 10. a3 {[%clk 0:02:31]}  Bxc3 {[%clk 0:02:30]} 11. bxc3 {[%clk 0:02:29]}  O-O {[%clk 0:02:28]} 12. Nd2 {[%clk 0:02:05]}  d5 {[%clk 0:01:59]} 13. Qe2 {[%clk 0:01:17]}  Qe8 {[%clk 0:01:46]} 14. f4 {[%clk 0:01:02]}  dxe4 {[%clk 0:01:30]} 15. fxe5 {[%clk 0:01:02]}  exd3 {[%clk 0:01:24]} 16. cxd3 {[%clk 0:01:00]}  Nxe5 {[%clk 0:00:49]} 17. Bc5 {[%clk 0:00:59]}  Ned7 {[%clk 0:00:40]} 18. Bxf8 {[%clk 0:00:57]}  Nxf8 {[%clk 0:00:41]} 19. Rab1 {[%clk 0:00:55]}  Qc6 {[%clk 0:00:41]} 20. Ne4 {[%clk 0:00:45]}  N8d7 {[%clk 0:00:40]} 21. Rbe1 {[%clk 0:00:25]}  Re8 {[%clk 0:00:39]} 22. c4 {[%clk 0:00:23]}  e5 {[%clk 0:00:33]} 23. Qf3 {[%clk 0:00:21]}  Qe6 {[%clk 0:00:20]} 24. Nxf6+ {[%clk 0:00:19]}  Nxf6 {[%clk 0:00:20]} 25. Qxb7 {[%clk 0:00:20]}  Qd6 {[%clk 0:00:21]} 26. Qb3 {[%clk 0:00:18]}  Kh8 {[%clk 0:00:21]} 27. Qc3 {[%clk 0:00:18]}  h6 {[%clk 0:00:20]} 28. Kh1 {[%clk 0:00:18]}  Nh5 {[%clk 0:00:17]} 29. Rf3 {[%clk 0:00:18]}  Qg6 {[%clk 0:00:16]} 30. d4 {[%clk 0:00:17]}  e4 {[%clk 0:00:16]} 31. Rfe3 {[%clk 0:00:18]}  Nf6 {[%clk 0:00:17]} 32. d5 {[%clk 0:00:17]}  Qf5 {[%clk 0:00:17]} 33. Qd4 {[%clk 0:00:16]}  Qd7 {[%clk 0:00:17]} 34. Rxe4 {[%clk 0:00:15]}  Nxe4 {[%clk 0:00:17]} 35. Rxe4 {[%clk 0:00:16]}  Rf8 {[%clk 0:00:18]} 36. Re6 {[%clk 0:00:13]}  Kg8 {[%clk 0:00:16]} 37. Qe5 {[%clk 0:00:13]}  Rf1+ {[%clk 0:00:07]} 38. Kh2 {[%clk 0:00:14]}  Rf7 {[%clk 0:00:07]} 39. Re8+ {[%clk 0:00:13]}  Kh7 {[%clk 0:00:07]} 40. Qe4+ {[%clk 0:00:12]}  g6 {[%clk 0:00:07]} 41. Qe5 {[%clk 0:00:13]}  Rg7 {[%clk 0:00:08]} 42. c5 {[%clk 0:00:12]}  a5 {[%clk 0:00:07]} 43. c6 {[%clk 0:00:06]}  Qf7 {[%clk 0:00:08]} 44. Re6 {[%clk 0:00:05]}  Qf8 {[%clk 0:00:06]} 45. d6 {[%clk 0:00:04]}  cxd6 {[%clk 0:00:05]} 46. Qxd6 {[%clk 0:00:05]}  Qf7 {[%clk 0:00:05]} 47. Rf6 {[%clk 0:00:04]}  Qa7 {[%clk 0:00:05]} 48. Rf8 {[%clk 0:00:02]}  h5 {[%clk 0:00:06]} 49. Qd8 {[%clk 0:00:02]}  Kh6 {[%clk 0:00:04]} 50. Rh8+ {[%clk 0:00:02]}  Rh7 {[%clk 0:00:04]} 51. Qf8+ {[%clk 0:00:02]}  Kg5 {[%clk 0:00:05]} 52. h4+ {[%clk 0:00:03]}  Kg4 {[%clk 0:00:03]} 53. Qf3+ {[%clk 0:00:03]}  Kxh4 {[%clk 0:00:03]} 54. Qg3# {[%clk 0:00:04]} 1-0


[Site "https://www.chess.com"]

[Event "Titled Tuesday Blitz June 8 2021"]
[White "Gelman, Alexander"]
[Black "Sarana, Alexey"]
[WhiteFideId "4118316"]
[BlackFideId "24133795"]
[WhiteElo "2375"]
[BlackElo "2629"]
[Result "0-1"]
[Round "02"]
[TimeControl "180+1"]
[Date "2021.06.08"]
[WhiteClock "0:00:48"]
[BlackClock "0:01:33"]

1. d4 {[%clk 0:03:00]}  Nf6 {[%clk 0:02:57]} 2. Nc3 {[%clk 0:03:00]}  d5 {[%clk 0:02:57]} 3. Bf4 {[%clk 0:03:00]}  a6 {[%clk 0:02:56]} 4. e3 {[%clk 0:03:01]}  c5 {[%clk 0:02:56]} 5. Nf3 {[%clk 0:03:00]}  Nc6 {[%clk 0:02:56]} 6. Ne5 {[%clk 0:03:01]}  Bf5 {[%clk 0:02:53]} 7. g4 {[%clk 0:03:00]}  Be6 {[%clk 0:02:42]} 8. Nxc6 {[%clk 0:02:52]}  bxc6 {[%clk 0:02:43]} 9. g5 {[%clk 0:02:52]}  Nd7 {[%clk 0:02:42]} 10. Na4 {[%clk 0:02:27]}  cxd4 {[%clk 0:02:32]} 11. exd4 {[%clk 0:02:27]}  g6 {[%clk 0:02:32]} 12. h4 {[%clk 0:02:21]}  Bg7 {[%clk 0:02:25]} 13. h5 {[%clk 0:02:18]}  O-O {[%clk 0:02:19]} 14. Qd2 {[%clk 0:02:10]}  Bg4 {[%clk 0:02:18]} 15. hxg6 {[%clk 0:02:01]}  fxg6 {[%clk 0:02:19]} 16. Bh3 {[%clk 0:01:48]}  Bxh3 {[%clk 0:02:18]} 17. Rxh3 {[%clk 0:01:48]}  e5 {[%clk 0:02:18]} 18. dxe5 {[%clk 0:01:40]}  Nxe5 {[%clk 0:02:19]} 19. Bxe5 {[%clk 0:01:04]}  Bxe5 {[%clk 0:02:20]} 20. Nc5 {[%clk 0:01:04]}  Qe7 {[%clk 0:01:35]} 21. Qe2 {[%clk 0:00:48]}  Qxc5 {[%clk 0:01:33]} 0-1


[Site "https://www.chess.com"]

[Event "Titled Tuesday Blitz June 8 2021"]
[White "Gusarov, Grigory"]
[Black "Zubov, Alexander"]
[WhiteFideId "24102172"]
[BlackFideId "14109409"]
[WhiteElo "2241"]
[BlackElo "2740"]
[Result "1/2-1/2"]
[Round "02"]
[TimeControl "180+1"]
[Date "2021.06.08"]
[WhiteClock "0:00:23"]
[BlackClock "0:00:05"]

1. e4 {[%clk 0:03:00]}  c5 {[%clk 0:02:58]} 2. Nf3 {[%clk 0:03:00]}  e6 {[%clk 0:02:58]} 3. b3 {[%clk 0:03:00]}  Nc6 {[%clk 0:02:53]} 4. Bb2 {[%clk 0:02:58]}  d6 {[%clk 0:02:50]} 5. Bb5 {[%clk 0:02:57]}  e5 {[%clk 0:02:47]} 6. O-O {[%clk 0:02:55]}  Nf6 {[%clk 0:02:47]} 7. Re1 {[%clk 0:02:54]}  Be7 {[%clk 0:02:43]} 8. c3 {[%clk 0:02:54]}  Bg4 {[%clk 0:02:43]} 9. h3 {[%clk 0:02:53]}  Bh5 {[%clk 0:02:42]} 10. d4 {[%clk 0:02:47]}  Nd7 {[%clk 0:02:40]} 11. Bxc6 {[%clk 0:02:39]}  bxc6 {[%clk 0:02:39]} 12. g4 {[%clk 0:02:38]}  Bg6 {[%clk 0:02:39]} 13. dxe5 {[%clk 0:02:39]}  dxe5 {[%clk 0:02:38]} 14. c4 {[%clk 0:02:39]}  Qc7 {[%clk 0:02:37]} 15. Nbd2 {[%clk 0:02:34]}  h5 {[%clk 0:02:36]} 16. Nf1 {[%clk 0:02:32]}  hxg4 {[%clk 0:02:33]} 17. hxg4 {[%clk 0:02:32]}  f6 {[%clk 0:02:27]} 18. Ng3 {[%clk 0:02:29]}  Nf8 {[%clk 0:02:27]} 19. Nf5 {[%clk 0:02:28]}  Ne6 {[%clk 0:02:27]} 20. Bc1 {[%clk 0:02:09]}  Rd8 {[%clk 0:02:12]} 21. Qe2 {[%clk 0:02:09]}  Bf7 {[%clk 0:02:05]} 22. Be3 {[%clk 0:02:08]}  Bf8 {[%clk 0:01:54]} 23. Rad1 {[%clk 0:02:07]}  Nd4 {[%clk 0:01:51]} 24. Bxd4 {[%clk 0:02:07]}  cxd4 {[%clk 0:01:51]} 25. Kg2 {[%clk 0:02:05]}  g6 {[%clk 0:01:29]} 26. N5xd4 {[%clk 0:01:17]}  Bb4 {[%clk 0:01:21]} 27. Rh1 {[%clk 0:00:54]}  Rxh1 {[%clk 0:01:19]} 28. Rxh1 {[%clk 0:00:54]}  exd4 {[%clk 0:01:19]} 29. e5 {[%clk 0:00:54]}  Qe7 {[%clk 0:00:44]} 30. Qe4 {[%clk 0:00:54]}  Qe6 {[%clk 0:00:27]} 31. Nxd4 {[%clk 0:00:49]}  Qxe5 {[%clk 0:00:23]} 32. Qxe5+ {[%clk 0:00:49]}  fxe5 {[%clk 0:00:23]} 33. Nxc6 {[%clk 0:00:50]}  Bf8 {[%clk 0:00:18]} 34. Nxd8 {[%clk 0:00:33]}  Kxd8 {[%clk 0:00:19]} 35. f3 {[%clk 0:00:33]}  Bc5 {[%clk 0:00:17]} 36. Rd1+ {[%clk 0:00:32]}  Ke7 {[%clk 0:00:17]} 37. Re1 {[%clk 0:00:32]}  Kf6 {[%clk 0:00:17]} 38. g5+ {[%clk 0:00:32]}  Kf5 {[%clk 0:00:17]} 39. Kg3 {[%clk 0:00:32]}  a5 {[%clk 0:00:17]} 40. Rd1 {[%clk 0:00:32]}  Bd4 {[%clk 0:00:17]} 41. Rh1 {[%clk 0:00:31]}  Kxg5 {[%clk 0:00:16]} 42. Rh7 {[%clk 0:00:31]}  Kf6 {[%clk 0:00:16]} 43. Rh8 {[%clk 0:00:31]}  Bc3 {[%clk 0:00:14]} 44. Rb8 {[%clk 0:00:30]}  Be6 {[%clk 0:00:14]} 45. Rb6 {[%clk 0:00:30]}  Ke7 {[%clk 0:00:13]} 46. Ra6 {[%clk 0:00:29]}  g5 {[%clk 0:00:12]} 47. c5 {[%clk 0:00:28]}  Bd5 {[%clk 0:00:12]} 48. Ra7+ {[%clk 0:00:28]}  Ke6 {[%clk 0:00:12]} 49. Ra6+ {[%clk 0:00:29]}  Ke7 {[%clk 0:00:12]} 50. Ra7+ {[%clk 0:00:29]}  Kd8 {[%clk 0:00:10]} 51. Kg4 {[%clk 0:00:27]}  Bd2 {[%clk 0:00:09]} 52. Kf5 {[%clk 0:00:20]}  Bxf3 {[%clk 0:00:08]} 53. Kxe5 {[%clk 0:00:20]}  g4 {[%clk 0:00:08]} 54. c6 {[%clk 0:00:18]}  g3 {[%clk 0:00:06]} 55. Rd7+ {[%clk 0:00:17]}  Kc8 {[%clk 0:00:06]} 56. Rxd2 {[%clk 0:00:18]}  g2 {[%clk 0:00:06]} 57. Rxg2 {[%clk 0:00:18]}  Bxg2 {[%clk 0:00:07]} 58. Kd6 {[%clk 0:00:19]}  Be4 {[%clk 0:00:07]} 59. a3 {[%clk 0:00:19]}  Bd3 {[%clk 0:00:05]} 60. Kc5 {[%clk 0:00:18]}  Kc7 {[%clk 0:00:05]} 61. b4 {[%clk 0:00:19]}  axb4 {[%clk 0:00:05]} 62. axb4 {[%clk 0:00:19]}  Be2 {[%clk 0:00:06]} 63. b5 {[%clk 0:00:20]}  Bxb5 {[%clk 0:00:06]} 64. Kxb5 {[%clk 0:00:20]}  Kc8 {[%clk 0:00:07]} 65. Kb6 {[%clk 0:00:21]}  Kb8 {[%clk 0:00:07]} 66. Kc5 {[%clk 0:00:21]}  Kc7 {[%clk 0:00:07]} 67. Kd5 {[%clk 0:00:22]}  Kc8 {[%clk 0:00:08]} 68. Kd6 {[%clk 0:00:22]}  Kd8 {[%clk 0:00:08]} 69. Kc5 {[%clk 0:00:23]}  Kc7 {[%clk 0:00:09]} 70. Kb5 {[%clk 0:00:21]}  Kc8 {[%clk 0:00:09]} 71. Kc4 {[%clk 0:00:22]}  Kd8 {[%clk 0:00:07]} 72. Kd4 {[%clk 0:00:21]}  Kc8 {[%clk 0:00:07]} 73. Ke5 {[%clk 0:00:21]}  Kc7 {[%clk 0:00:04]} 74. Kd5 {[%clk 0:00:21]}  Kc8 {[%clk 0:00:04]} 75. Kd6 {[%clk 0:00:21]}  Kd8 {[%clk 0:00:05]} 76. c7+ {[%clk 0:00:22]}  Kc8 {[%clk 0:00:05]} 77. Kc6 {[%clk 0:00:23]} 1/2-1/2


[Site "https://www.chess.com"]